[Event "European Rapid Championship 2021"]
[Site "Katowice"]
[Date "2021.12.18"]
[Round "4.23"]
[White "Baum, Jonasz"]
[Black "Rudecki, Bartosz"]
[Result "0-1"]
[ECO "D31"]
[WhiteElo "2343"]
[BlackElo "1820"]
[Annotator "NA"]
[PlyCount "116"]
[EventDate "2021.12.18"]
[EventType "swiss"]
[EventCountry "POL"]
[SourceTitle "playchess.com"]
[Source "ChessBase"]
[SourceQuality "1"]
[TimeControl "900+10"]

1. d4 {[%emt 0:00:01]} d5 {[%emt 0:00:04]} 2. c4 {[%emt 0:00:02]} e6 {[%emt 0:
00:02]} 3. Nc3 {[%emt 0:00:07]} a6 {[%emt 0:00:04]} 4. cxd5 {[%emt 0:00:16]}
exd5 {[%emt 0:00:02]} 5. Nf3 {[%emt 0:00:02]} Nf6 {[%emt 0:00:07]} 6. Bg5 {
[%emt 0:00:08]} Be6 {[%emt 0:00:10]} 7. e3 {[%emt 0:00:02]} Nbd7 {[%emt 0:00:
06]} 8. Bd3 {[%emt 0:00:14]} Bd6 {[%emt 0:00:16]} 9. O-O {[%emt 0:00:18]} c6 {
[%emt 0:00:04]} 10. Qc2 {[%emt 0:00:37]} Qc7 {[%emt 0:00:25]} 11. Bh4 {[%emt 0:
01:02]} Bg4 {[%emt 0:00:28]} 12. Bg3 {[%emt 0:04:42]} O-O {[%emt 0:00:37]} 13.
Nh4 {[%emt 0:01:31]} Bxg3 {[%emt 0:00:34]} 14. hxg3 {[%emt 0:00:04]} Rae8 {
[%emt 0:00:17]} 15. Rae1 {[%emt 0:00:22]} g6 {[%emt 0:02:30]} 16. Nf3 {[%emt 0:
00:49]} Qd6 {[%emt 0:00:24]} 17. Nd2 {[%emt 0:00:52]} Kg7 {[%emt 0:01:25]} 18.
Nb3 {[%emt 0:02:05]} h5 {[%emt 0:02:04]} 19. Ne2 {[%emt 0:01:08]} Bxe2 {
[%emt 0:01:26]} 20. Qxe2 {[%emt 0:00:33]} Ne4 {[%emt 0:00:26]} 21. Qf3 {
[%emt 0:00:11]} f5 {[%emt 0:01:10]} 22. Qf4 {[%emt 0:00:05]} Kf6 {[%emt 0:01:
18]} 23. f3 {[%emt 0:01:14]} Qxf4 {[%emt 0:00:52]} 24. gxf4 {[%emt 0:00:02]}
Ng3 {[%emt 0:00:12]} 25. Rf2 {[%emt 0:00:02]} Re7 {[%emt 0:00:17]} 26. Rc2 {
[%emt 0:00:36]} Rfe8 {[%emt 0:00:02]} 27. Kf2 {[%emt 0:00:00]} h4 {[%emt 0:00:
08]} 28. Rcc1 {[%emt 0:01:10]} Kf7 {[%emt 0:01:44]} 29. Na1 {[%emt 0:00:02]}
Kf6 {[%emt 0:00:15]} 30. b4 {[%emt 0:00:17]} g5 {[%emt 0:00:19]} 31. fxg5+ {
[%emt 0:00:06]} Kxg5 {[%emt 0:00:01]} 32. Nc2 {[%emt 0:00:11]} Nf6 {[%emt 0:00:
07]} 33. a4 {[%emt 0:00:18]} f4 {[%emt 0:00:16]} 34. exf4+ {[%emt 0:00:21]}
Kxf4 {[%emt 0:00:01]} 35. Rxe7 {[%emt 0:00:20]} Rxe7 {[%emt 0:00:01]} 36. b5 {
[%emt 0:00:16]} axb5 {[%emt 0:00:26]} 37. axb5 cxb5 {[%emt 0:00:13]} 38. Nb4 {
[%emt 0:00:24]} Re3 {[%emt 0:00:30]} 39. Rd1 {[%emt 0:00:43]} h3 {[%emt 0:00:
57]} 40. gxh3 {[%emt 0:00:01]} Rxf3+ {[%emt 0:00:05]} 41. Kg2 {[%emt 0:00:01]}
Nge4 {[%emt 0:00:14]} 42. Bxb5 {[%emt 0:00:23]} Nc3 {[%emt 0:00:16]} 43. Rd3 {
[%emt 0:00:29]} Rxd3 {[%emt 0:00:06]} 44. Bxd3 {[%emt 0:00:07]} Ke3 {[%emt 0:
00:04]} 45. Bg6 {[%emt 0:00:08]} Kxd4 {[%emt 0:00:10]} 46. h4 {[%emt 0:00:04]}
Ne2 {[%emt 0:00:03]} 47. Kf3 {[%emt 0:00:06]} Nc3 {[%emt 0:00:24]} 48. Kf4 {
[%emt 0:00:06]} Kc5 {[%emt 0:00:04]} 49. Nd3+ {[%emt 0:00:06]} Kd4 {[%emt 0:00:
06]} 50. Ne1 {[%emt 0:00:20]} Nce4 {[%emt 0:00:04]} 51. Nf3+ {[%emt 0:00:06]}
Kc5 {[%emt 0:00:07]} 52. Ke5 {[%emt 0:00:16]} b5 {[%emt 0:00:15]} 53. Ne1 {
[%emt 0:00:22]} b4 {[%emt 0:00:19]} 54. Bxe4 {[%emt 0:00:11]} dxe4 {[%emt 0:00:
10]} 55. Kxf6 {[%emt 0:00:09]} b3 {[%emt 0:00:00]} 56. h5 {[%emt 0:00:08]} b2 {
[%emt 0:00:05]} 57. h6 {[%emt 0:00:03]} b1=Q {[%emt 0:00:03]} 58. h7 {[%emt 0:
00:03]} Qxe1 {[%emt 0:00:02]} 0-1

[Event "European Rapid Championship 2021"]
[Site "Katowice"]
[Date "2021.12.18"]
[Round "4.24"]
[White "Szczygiel, Konrad"]
[Black "Molenda, Marcin"]
[Result "0-1"]
[ECO "E77"]
[WhiteElo "1835"]
[BlackElo "2365"]
[Annotator "NA"]
[PlyCount "77"]
[EventDate "2021.12.18"]
[EventType "swiss"]
[EventCountry "POL"]
[SourceTitle "playchess.com"]
[Source "ChessBase"]
[SourceQuality "1"]
[TimeControl "900+10"]

1. d4 {[%emt 0:00:51]} Nf6 {[%emt 0:00:02]} 2. c4 {[%emt 0:00:02]} g6 {[%emt 0:
00:02]} 3. Nc3 {[%emt 0:00:01]} Bg7 {[%emt 0:00:02]} 4. e4 {[%emt 0:00:02]} d6
{[%emt 0:00:02]} 5. f4 {[%emt 0:00:02]} O-O {[%emt 0:00:18]} 6. Nf3 {[%emt 0:
00:05]} c5 {[%emt 0:00:04]} 7. d5 {[%emt 0:00:02]} e6 {[%emt 0:00:22]} 8. Be2 {
[%emt 0:00:01]} exd5 {[%emt 0:00:02]} 9. cxd5 {[%emt 0:00:01]} b5 {[%emt 0:00:
06]} 10. Bxb5 {[%emt 0:00:09]} Nxe4 {[%emt 0:01:10]} 11. Nxe4 {[%emt 0:00:02]}
Qa5+ {[%emt 0:00:01]} 12. Kf2 {[%emt 0:00:01]} Qxb5 {[%emt 0:00:07]} 13. Nxd6 {
[%emt 0:00:01]} Qb6 {[%emt 0:01:12]} 14. Nxc8 {[%emt 0:00:06]} Rxc8 {[%emt 0:
00:02]} 15. Re1 {[%emt 0:02:49]} c4+ {[%emt 0:01:01]} 16. Kf1 {[%emt 0:02:05]}
c3 {[%emt 0:00:40]} 17. bxc3 {[%emt 0:02:53]} Bxc3 {[%emt 0:00:14]} 18. Be3 {
[%emt 0:01:20]} Qb5+ {[%emt 0:00:06]} 19. Re2 {[%emt 0:00:27]} Bxa1 {[%emt 0:
00:06]} 20. Qxa1 {[%emt 0:00:02]} Qxd5 {[%emt 0:00:04]} 21. Bd4 {[%emt 0:00:14]
} Nd7 {[%emt 0:00:48]} 22. Bh8 {[%emt 0:03:27]} f6 {[%emt 0:00:18]} 23. Bxf6 {
[%emt 0:00:02]} Nxf6 {[%emt 0:00:07]} 24. Qxf6 {[%emt 0:00:02]} Rc1+ {[%emt 0:
00:22]} 25. Kf2 {[%emt 0:00:19]} Rf8 {[%emt 0:00:02]} 26. Qe5 {[%emt 0:00:14]}
Qc4 {[%emt 0:01:31]} 27. g3 {[%emt 0:00:47]} Rc2 {[%emt 0:00:18]} 28. Rxc2 {
[%emt 0:00:21]} Qxc2+ {[%emt 0:00:02]} 29. Qe2 {[%emt 0:00:01]} Rc8 {[%emt 0:
00:13]} 30. Nd4 {[%emt 0:00:38]} Qxe2+ {[%emt 0:00:04]} 31. Kxe2 {[%emt 0:00:
01]} Rc4 {[%emt 0:00:19]} 32. Ke3 {[%emt 0:01:03]} Ra4 {[%emt 0:00:08]} 33. g4
{[%emt 0:00:41]} Rxa2 {[%emt 0:00:04]} 34. Nf3 {[%emt 0:00:26]} a5 {[%emt 0:00:
06]} 35. f5 {[%emt 0:00:19]} gxf5 {[%emt 0:00:02]} 36. gxf5 {[%emt 0:00:00]} a4
{[%emt 0:00:01]} 37. Kf4 {[%emt 0:00:50]} Rf2 {[%emt 0:00:03]} 38. Ke3 {
[%emt 0:00:03]} Rxf3+ {[%emt 0:00:01]} 39. Kd4 0-1

[Event "European Rapid Championship 2021"]
[Site "Katowice"]
[Date "2021.12.18"]
[Round "4.24"]
[White "Nytra, Ondrej"]
[Black "Piesik, Piotr"]
[Result "1/2-1/2"]
[ECO "B12"]
[WhiteElo "1798"]
[BlackElo "2342"]
[Annotator "ChessBase"]
[PlyCount "142"]
[EventDate "2021.12.18"]
[EventType "swiss"]
[EventCountry "POL"]
[SourceTitle "playchess.com"]
[Source "ChessBase"]
[SourceQuality "1"]
[TimeControl "900+10"]

1. e4 {[%emt 0:00:02]} c6 {[%emt 0:00:01]} 2. d4 {[%emt 0:00:01]} d5 {[%emt 0:
00:01]} 3. e5 {[%emt 0:00:02]} Bf5 {[%emt 0:00:01]} 4. c3 {[%emt 0:00:01]} e6 {
[%emt 0:00:01]} 5. Be3 {[%emt 0:00:01]} Nd7 {[%emt 0:00:02]} 6. Nd2 {[%emt 0:
00:01]} f6 {[%emt 0:00:08]} 7. f4 {[%emt 0:00:08]} Qb6 {[%emt 0:00:23]} 8. Qb3
{[%emt 0:00:04]} g5 {[%emt 0:00:09]} 9. Be2 {[%emt 0:00:22]} gxf4 {[%emt 0:00:
25]} 10. Bxf4 {[%emt 0:00:42]} fxe5 {[%emt 0:00:10]} 11. dxe5 {[%emt 0:00:33]}
Nc5 {[%emt 0:01:26]} 12. Qxb6 {[%emt 0:00:36]} axb6 {[%emt 0:00:01]} 13. Ngf3 {
[%emt 0:00:16]} Na4 {[%emt 0:00:44]} 14. Nd4 {[%emt 0:00:25]} Nxb2 {[%emt 0:00:
29]} 15. Nxf5 {[%emt 0:00:05]} exf5 {[%emt 0:00:01]} 16. O-O {[%emt 0:01:46]}
Bc5+ {[%emt 0:00:07]} 17. Kh1 {[%emt 0:00:06]} Ne7 {[%emt 0:00:02]} 18. Bg5 {
[%emt 0:00:34]} Na4 {[%emt 0:02:46]} 19. c4 {[%emt 0:01:11]} Nc3 {[%emt 0:00:
16]} 20. Bh5+ {[%emt 0:00:02]} Kd7 {[%emt 0:00:03]} 21. cxd5 {[%emt 0:00:56]}
Ncxd5 {[%emt 0:00:06]} 22. Nc4 {[%emt 0:05:11]} Rhf8 {[%emt 0:02:31]} 23. h3 {
[%emt 0:03:36]} Ra4 {[%emt 0:00:26]} 24. Bh6 {[%emt 0:00:32]} Rfa8 {[%emt 0:00:
17]} 25. e6+ {[%emt 0:00:33]} Kxe6 {[%emt 0:00:37]} 26. Rae1+ {[%emt 0:00:01]}
Kd7 {[%emt 0:00:01]} 27. Ne5+ {[%emt 0:00:01]} Kc7 {[%emt 0:00:01]} 28. Bf7 {
[%emt 0:00:25]} Rxa2 {[%emt 0:01:56]} 29. Be6 {[%emt 0:00:02]} Rf2 {[%emt 0:00:
55]} 30. Rxf2 {[%emt 0:00:31]} Bxf2 {[%emt 0:00:01]} 31. Rf1 {[%emt 0:00:34]}
Bd4 {[%emt 0:00:02]} 32. Nf7 {[%emt 0:00:23]} Ra1 {[%emt 0:00:57]} 33. Rxa1 {
[%emt 0:00:37]} Bxa1 {[%emt 0:00:01]} 34. Ng5 {[%emt 0:00:00]} b5 {[%emt 0:00:
02]} 35. Bf8 {[%emt 0:00:27]} b4 {[%emt 0:00:48]} 36. Nxh7 {[%emt 0:00:01]} f4
{[%emt 0:01:12]} 37. Ng5 {[%emt 0:00:12]} Bf6 {[%emt 0:01:21]} 38. Ne4 {
[%emt 0:00:05]} Bh4 {[%emt 0:00:05]} 39. Bg7 {[%emt 0:00:21]} b6 {[%emt 0:00:
51]} 40. Be5+ {[%emt 0:00:12]} Kb7 {[%emt 0:00:01]} 41. Bd6 {[%emt 0:00:01]}
Ka6 {[%emt 0:00:09]} 42. Kg1 {[%emt 0:00:16]} c5 {[%emt 0:00:17]} 43. Kf1 {
[%emt 0:00:14]} Ka5 {[%emt 0:00:39]} 44. Ke2 {[%emt 0:00:09]} Kb5 {[%emt 0:00:
24]} 45. Bd7+ {[%emt 0:00:09]} Kc4 {[%emt 0:00:05]} 46. Nd2+ {[%emt 0:00:01]}
Kc3 {[%emt 0:00:22]} 47. Be5+ {[%emt 0:00:02]} Kc2 {[%emt 0:00:01]} 48. Ba4+ {
[%emt 0:00:01]} Kc1 {[%emt 0:00:04]} 49. Nb3+ {[%emt 0:00:09]} Kb1 {[%emt 0:00:
02]} 50. Nd2+ {[%emt 0:00:01]} Ka2 {[%emt 0:00:09]} 51. Kd3 {[%emt 0:00:13]}
Bf6 {[%emt 0:00:21]} 52. Bb3+ {[%emt 0:00:42]} Ka3 {[%emt 0:00:01]} 53. Bxf6 {
[%emt 0:00:08]} c4+ {[%emt 0:00:15]} 54. Bxc4 {[%emt 0:00:12]} Nxf6 {[%emt 0:
00:01]} 55. Bb3 {[%emt 0:00:09]} Nf5 {[%emt 0:00:27]} 56. Be6 {[%emt 0:00:07]}
Nd6 {[%emt 0:00:18]} 57. h4 {[%emt 0:00:13]} b5 {[%emt 0:00:08]} 58. Bb3 {
[%emt 0:00:06]} Nf5 {[%emt 0:00:10]} 59. h5 {[%emt 0:00:16]} Nxh5 {[%emt 0:00:
04]} 60. Ke4 {[%emt 0:00:07]} Ne3 {[%emt 0:00:34]} 61. Bf7 {[%emt 0:00:14]}
Nf6+ {[%emt 0:00:09]} 62. Kxf4 {[%emt 0:00:05]} Nxg2+ {[%emt 0:00:01]} 63. Ke5
{[%emt 0:00:11]} Ng4+ {[%emt 0:00:06]} 64. Kd4 {[%emt 0:00:08]} Nh4 {[%emt 0:
00:59]} 65. Kc5 {[%emt 0:00:09]} Nf5 {[%emt 0:00:01]} 66. Be6 {[%emt 0:00:03]}
Nge3 {[%emt 0:00:02]} 67. Bd7 {[%emt 0:00:24]} b3 {[%emt 0:00:19]} 68. Kxb5 {
[%emt 0:00:09]} b2 {[%emt 0:00:07]} 69. Bxf5 {[%emt 0:00:02]} Nxf5 {[%emt 0:00:
05]} 70. Nc4+ {[%emt 0:00:01]} Kb3 {[%emt 0:00:00]} 71. Nxb2 {[%emt 0:00:01]}
Kxb2 {[%emt 0:00:01]} 1/2-1/2

[Event "European Rapid Championship 2021"]
[Site "Katowice"]
[Date "2021.12.18"]
[Round "4.25"]
[White "Karykowska, Anna"]
[Black "Sharankov, Grigory"]
[Result "0-1"]
[ECO "C00"]
[WhiteElo "1990"]
[BlackElo "2220"]
[Annotator "NA"]
[PlyCount "90"]
[EventDate "2021.12.18"]
[EventType "swiss"]
[EventCountry "POL"]
[SourceTitle "playchess.com"]
[Source "ChessBase"]
[SourceQuality "1"]
[TimeControl "900+10"]

1. e4 {[%emt 0:00:02]} e6 {[%emt 0:00:01]} 2. d4 {[%emt 0:00:03]} d5 {[%emt 0:
00:01]} 3. Bd3 {[%emt 0:00:03]} c5 {[%emt 0:00:04]} 4. exd5 {[%emt 0:00:07]}
exd5 {[%emt 0:00:01]} 5. Nf3 {[%emt 0:01:18]} Nc6 {[%emt 0:00:34]} 6. dxc5 {
[%emt 0:00:42]} Bxc5 {[%emt 0:00:03]} 7. O-O {[%emt 0:00:02]} Nf6 {[%emt 0:00:
02]} 8. Bg5 {[%emt 0:00:17]} O-O {[%emt 0:00:05]} 9. Nbd2 {[%emt 0:00:11]} h6 {
[%emt 0:00:02]} 10. Bh4 {[%emt 0:00:20]} Bb6 {[%emt 0:00:23]} 11. a3 {[%emt 0:
01:16]} Re8 {[%emt 0:01:20]} 12. b4 {[%emt 0:00:37]} g5 {[%emt 0:00:18]} 13.
Bg3 {[%emt 0:00:14]} Ne4 {[%emt 0:00:05]} 14. c4 {[%emt 0:03:04]} Nxg3 {
[%emt 0:01:59]} 15. hxg3 {[%emt 0:00:08]} Be6 {[%emt 0:00:44]} 16. c5 {[%emt 0:
00:21]} Bc7 {[%emt 0:00:02]} 17. Nb3 {[%emt 0:00:03]} Qf6 {[%emt 0:00:17]} 18.
b5 {[%emt 0:00:39]} Ne5 {[%emt 0:00:22]} 19. Nxe5 {[%emt 0:01:07]} Bxe5 {
[%emt 0:00:04]} 20. Rb1 {[%emt 0:00:34]} Kg7 {[%emt 0:00:06]} 21. Na5 {[%emt 0:
00:41]} b6 {[%emt 0:00:20]} 22. Nb3 {[%emt 0:00:54]} h5 {[%emt 0:01:42]} 23.
Qf3 {[%emt 0:00:42]} Rh8 {[%emt 0:02:29]} 24. Qxf6+ {[%emt 0:00:31]} Bxf6 {
[%emt 0:00:01]} 25. c6 {[%emt 0:00:36]} h4 {[%emt 0:00:07]} 26. gxh4 {[%emt 0:
00:24]} Rxh4 {[%emt 0:00:40]} 27. f3 {[%emt 0:01:27]} Ra4 {[%emt 0:00:20]} 28.
Kf2 {[%emt 0:01:17]} Rh8 {[%emt 0:00:14]} 29. Rh1 {[%emt 0:00:15]} Rxa3 {
[%emt 0:00:01]} 30. Rxh8 {[%emt 0:00:05]} Kxh8 {[%emt 0:00:01]} 31. Ke2 {
[%emt 0:01:23]} Kg7 {[%emt 0:00:35]} 32. Nd2 {[%emt 0:00:26]} Be5 {[%emt 0:00:
39]} 33. Rc1 {[%emt 0:00:14]} Bc7 {[%emt 0:00:01]} 34. g4 {[%emt 0:00:22]} Kf6
{[%emt 0:00:02]} 35. Nf1 {[%emt 0:00:21]} Ke5 {[%emt 0:01:11]} 36. Ne3 {
[%emt 0:00:06]} Bd6 {[%emt 0:02:23]} 37. c7 {[%emt 0:00:11]} Bc5 {[%emt 0:00:
09]} 38. Nf5 {[%emt 0:00:08]} Bc8 {[%emt 0:01:02]} 39. Rc2 {[%emt 0:00:11]} Ke6
{[%emt 0:00:13]} 40. Nh6 {[%emt 0:00:13]} Ke7 {[%emt 0:01:56]} 41. Bf5 {
[%emt 0:00:08]} Bxf5 {[%emt 0:00:01]} 42. Nxf5+ {[%emt 0:00:06]} Kd7 {[%emt 0:
00:02]} 43. Nh6 {[%emt 0:00:13]} Re3+ {[%emt 0:00:06]} 44. Kf2 {[%emt 0:00:14]}
Rc3+ {[%emt 0:00:03]} 45. Kg3 {[%emt 0:00:05]} Rxc2 {[%emt 0:00:02]} 0-1

[Event "European Rapid Championship 2021"]
[Site "Katowice"]
[Date "2021.12.18"]
[Round "4.26"]
[White "Andersen, Mads"]
[Black "Semjonovs, Ilja"]
[Result "1-0"]
[ECO "A58"]
[WhiteElo "2574"]
[BlackElo "2383"]
[Annotator "ChessBase"]
[PlyCount "35"]
[EventDate "2021.12.18"]
[EventType "swiss"]
[EventCountry "POL"]
[SourceTitle "playchess.com"]
[Source "ChessBase"]
[SourceQuality "1"]
[TimeControl "900+10"]

1. d4 {[%emt 0:00:03]} Nf6 {[%emt 0:00:02]} 2. c4 {[%emt 0:00:02]} c5 {[%emt 0:
00:08]} 3. d5 {[%emt 0:00:03]} b5 {[%emt 0:00:03]} 4. cxb5 {[%emt 0:00:02]} a6
{[%emt 0:00:02]} 5. bxa6 {[%emt 0:00:02]} g6 {[%emt 0:00:08]} 6. Nc3 {[%emt 0:
00:03]} Bg7 {[%emt 0:00:08]} 7. e4 {[%emt 0:00:05]} O-O {[%emt 0:00:20]} 8. Bc4
{[%emt 0:00:06]} Qa5 {[%emt 0:00:49]} 9. a7 {[%emt 0:00:06]} Nxe4 {[%emt 0:02:
09]} 10. axb8=Q {[%emt 0:01:24]} Rxb8 {[%emt 0:00:03]} 11. Nge2 {[%emt 0:01:17]
} Nxc3 {[%emt 0:04:42]} 12. bxc3 {[%emt 0:00:20]} Bxc3+ {[%emt 0:00:04]} 13.
Bd2 {[%emt 0:00:19]} Bxd2+ {[%emt 0:00:04]} 14. Qxd2 {[%emt 0:00:02]} Qa4 {
[%emt 0:00:01]} 15. Rc1 {[%emt 0:01:22]} Rb4 {[%emt 0:00:15]} 16. Bb3 {[%emt 0:
02:55]} Qb5 {[%emt 0:00:24]} 17. O-O {[%emt 0:00:18]} c4 {[%emt 0:00:13]} 18.
Bc2 {[%emt 0:00:24]} 1-0

[Event "European Rapid Championship 2021"]
[Site "Katowice"]
[Date "2021.12.18"]
[Round "4.26"]
[White "Golubovskis, Maksims"]
[Black "Kaminski, Jan"]
[Result "1-0"]
[ECO "B36"]
[WhiteElo "2210"]
[BlackElo "1812"]
[Annotator "NA"]
[PlyCount "111"]
[EventDate "2021.12.18"]
[EventType "swiss"]
[EventCountry "POL"]
[SourceTitle "playchess.com"]
[Source "ChessBase"]
[SourceQuality "1"]
[TimeControl "900+10"]

1. e4 {[%emt 0:00:01]} c5 {[%emt 0:00:01]} 2. Nf3 {[%emt 0:00:02]} g6 {[%emt 0:
00:02]} 3. d4 {[%emt 0:00:02]} cxd4 {[%emt 0:00:01]} 4. Nxd4 {[%emt 0:00:01]}
Nc6 {[%emt 0:00:01]} 5. c4 {[%emt 0:00:03]} Nf6 {[%emt 0:00:03]} 6. Nc3 {
[%emt 0:00:04]} d6 {[%emt 0:00:02]} 7. f3 {[%emt 0:00:13]} Nxd4 {[%emt 0:00:03]
} 8. Qxd4 {[%emt 0:00:03]} Bg7 {[%emt 0:00:03]} 9. Be3 {[%emt 0:00:23]} O-O {
[%emt 0:00:03]} 10. Qd2 {[%emt 0:00:02]} Be6 {[%emt 0:00:16]} 11. Nd5 {[%emt 0:
00:36]} Nxd5 {[%emt 0:00:36]} 12. cxd5 {[%emt 0:00:06]} Bd7 {[%emt 0:00:02]}
13. Be2 {[%emt 0:00:15]} b5 {[%emt 0:01:06]} 14. O-O {[%emt 0:00:16]} a5 {
[%emt 0:00:06]} 15. Rac1 {[%emt 0:00:12]} a4 {[%emt 0:00:11]} 16. Rc2 {[%emt 0:
03:08]} a3 {[%emt 0:03:49]} 17. b3 {[%emt 0:00:41]} Qb8 {[%emt 0:00:11]} 18.
Bd4 {[%emt 0:01:40]} Bxd4+ {[%emt 0:00:18]} 19. Qxd4 {[%emt 0:00:02]} Rc8 {
[%emt 0:00:12]} 20. Rfc1 {[%emt 0:02:55]} Rxc2 {[%emt 0:00:19]} 21. Rxc2 {
[%emt 0:00:02]} Qa7 {[%emt 0:03:37]} 22. Qxa7 {[%emt 0:00:05]} Rxa7 {[%emt 0:
00:01]} 23. Kf2 {[%emt 0:00:46]} f5 {[%emt 0:00:23]} 24. Ke3 {[%emt 0:00:19]}
fxe4 {[%emt 0:00:02]} 25. fxe4 {[%emt 0:00:03]} Kf7 {[%emt 0:00:29]} 26. Kd4 {
[%emt 0:00:19]} b4 {[%emt 0:02:05]} 27. Bd3 {[%emt 0:00:12]} g5 {[%emt 0:02:35]
} 28. e5 {[%emt 0:01:10]} dxe5+ {[%emt 0:00:04]} 29. Kxe5 {[%emt 0:00:02]} h6 {
[%emt 0:00:22]} 30. Rc5 {[%emt 0:02:52]} Rb7 {[%emt 0:00:47]} 31. Bc4 {[%emt 0:
00:18]} Kg7 {[%emt 0:00:13]} 32. h3 {[%emt 0:00:34]} Be8 {[%emt 0:00:09]} 33.
Bd3 {[%emt 0:00:11]} Bd7 {[%emt 0:00:22]} 34. Be4 {[%emt 0:00:57]} Ra7 {
[%emt 0:00:37]} 35. Rc4 {[%emt 0:00:12]} Rb7 {[%emt 0:00:24]} 36. Rc5 {[%emt 0:
00:41]} Ra7 {[%emt 0:00:32]} 37. Bd3 {[%emt 0:00:09]} Rb7 {[%emt 0:00:07]} 38.
d6 {[%emt 0:01:03]} exd6+ {[%emt 0:00:02]} 39. Kxd6 {[%emt 0:00:01]} Be8 {
[%emt 0:00:47]} 40. Rc7+ {[%emt 0:00:24]} Rxc7 {[%emt 0:00:00]} 41. Kxc7 {
[%emt 0:00:01]} Bf7 {[%emt 0:00:20]} 42. Bc2 {[%emt 0:00:02]} Bd5 {[%emt 0:00:
05]} 43. g3 {[%emt 0:00:06]} Bg2 {[%emt 0:00:09]} 44. h4 {[%emt 0:00:01]} gxh4
{[%emt 0:00:02]} 45. gxh4 {[%emt 0:00:00]} Kf6 {[%emt 0:00:04]} 46. Kd6 {
[%emt 0:00:02]} h5 {[%emt 0:00:11]} 47. Kc5 {[%emt 0:00:51]} Ke5 {[%emt 0:00:
03]} 48. Kxb4 {[%emt 0:00:10]} Kf4 {[%emt 0:00:01]} 49. Bd1 {[%emt 0:00:30]}
Bf3 {[%emt 0:00:12]} 50. Bxf3 {[%emt 0:00:08]} Kxf3 {[%emt 0:00:01]} 51. Kxa3 {
[%emt 0:00:01]} Kg4 {[%emt 0:00:01]} 52. b4 {[%emt 0:00:01]} Kxh4 {[%emt 0:00:
02]} 53. b5 {[%emt 0:00:01]} Kg4 {[%emt 0:00:04]} 54. b6 {[%emt 0:00:05]} h4 {
[%emt 0:00:01]} 55. b7 {[%emt 0:00:01]} h3 {[%emt 0:00:01]} 56. b8=Q {[%emt 0:
00:02]} 1-0

[Event "European Rapid Championship 2021"]
[Site "Katowice"]
[Date "2021.12.18"]
[Round "4.27"]
[White "Schneider, Ilja"]
[Black "Zylka, Stanislaw"]
[Result "1-0"]
[ECO "D70"]
[WhiteElo "2490"]
[BlackElo "2367"]
[Annotator "ChessBase"]
[PlyCount "97"]
[EventDate "2021.12.18"]
[EventType "swiss"]
[EventCountry "POL"]
[SourceTitle "playchess.com"]
[Source "ChessBase"]
[SourceQuality "1"]
[TimeControl "900+10"]

1. d4 {[%emt 0:00:03]} Nf6 {[%emt 0:00:03]} 2. c4 {[%emt 0:00:02]} g6 {[%emt 0:
00:01]} 3. Nf3 {[%emt 0:00:02]} Bg7 {[%emt 0:00:02]} 4. e3 {[%emt 0:00:01]} O-O
{[%emt 0:00:03]} 5. Be2 {[%emt 0:00:02]} d5 {[%emt 0:00:07]} 6. cxd5 {[%emt 0:
00:02]} Nxd5 {[%emt 0:00:02]} 7. e4 {[%emt 0:00:04]} Nb6 {[%emt 0:00:02]} 8.
O-O {[%emt 0:00:04]} Nc6 {[%emt 0:00:13]} 9. Be3 {[%emt 0:00:40]} Bg4 {[%emt 0:
00:12]} 10. Nbd2 {[%emt 0:00:10]} Qd6 {[%emt 0:01:14]} 11. Rc1 {[%emt 0:03:35]}
e6 {[%emt 0:03:35]} 12. d5 {[%emt 0:04:00]} exd5 {[%emt 0:00:02]} 13. Bc5 {
[%emt 0:00:01]} Qd7 {[%emt 0:00:52]} 14. Bxf8 {[%emt 0:00:23]} Rxf8 {[%emt 0:
00:03]} 15. exd5 {[%emt 0:00:11]} Qxd5 {[%emt 0:00:05]} 16. Nc4 {[%emt 0:00:08]
} Qxd1 {[%emt 0:01:58]} 17. Rfxd1 {[%emt 0:00:04]} Na4 {[%emt 0:03:12]} 18. h3
{[%emt 0:03:35]} Bf5 {[%emt 0:00:07]} 19. Bd3 {[%emt 0:01:11]} Be6 20. b3 Nc3 {
[%emt 0:00:35]} 21. Rd2 {[%emt 0:00:11]} Nb4 {[%emt 0:02:42]} 22. Bb1 {[%emt 0:
00:01]} Nxb1 {[%emt 0:00:09]} 23. Rxb1 {[%emt 0:00:01]} Nc6 {[%emt 0:00:22]}
24. Ng5 {[%emt 0:00:48]} Bf5 {[%emt 0:00:04]} 25. Rbd1 {[%emt 0:00:24]} Bh6 {
[%emt 0:00:12]} 26. f4 {[%emt 0:00:03]} f6 {[%emt 0:00:11]} 27. g4 {[%emt 0:00:
13]} Bc8 {[%emt 0:00:33]} 28. Ne4 {[%emt 0:00:01]} Bxf4 {[%emt 0:00:07]} 29.
Rf2 {[%emt 0:00:01]} g5 {[%emt 0:00:09]} 30. Re2 {[%emt 0:00:54]} f5 {[%emt 0:
00:43]} 31. gxf5 {[%emt 0:00:18]} Bxf5 {[%emt 0:00:03]} 32. Nxg5 {[%emt 0:00:
51]} Kh8 {[%emt 0:02:07]} 33. Ne6 {[%emt 0:00:41]} Rg8+ {[%emt 0:00:01]} 34.
Kh1 {[%emt 0:00:03]} Bg3 {[%emt 0:00:38]} 35. Rg1 {[%emt 0:00:21]} h5 {[%emt 0:
00:07]} 36. Nd2 {[%emt 0:01:09]} h4 {[%emt 0:00:06]} 37. Nf1 {[%emt 0:00:12]}
Bxh3 38. Nxg3 {[%emt 0:00:01]} hxg3 {[%emt 0:00:22]} 39. Re3 {[%emt 0:00:09]}
g2+ {[%emt 0:00:16]} 40. Kh2 {[%emt 0:00:01]} Bf5 {[%emt 0:00:02]} 41. Nxc7 {
[%emt 0:00:31]} Rg7 {[%emt 0:00:23]} 42. Re8+ {[%emt 0:00:18]} Kh7 {[%emt 0:00:
01]} 43. Nd5 {[%emt 0:00:00]} Rg6 {[%emt 0:00:13]} 44. Rxg2 {[%emt 0:00:06]}
Rh6+ {[%emt 0:00:09]} 45. Kg1 {[%emt 0:00:00]} Nd4 {[%emt 0:00:13]} 46. Re7+ {
[%emt 0:00:11]} Kh8 {[%emt 0:00:01]} 47. Kf2 {[%emt 0:00:27]} Rh4 {[%emt 0:00:
17]} 48. Re8+ {[%emt 0:00:15]} Kh7 {[%emt 0:00:05]} 49. Nf6+ {[%emt 0:00:01]}
1-0